Workbook

Sheet MLS
B2: Easy Enough: Just fill in all the blue cells while reviewing a property and the results will populate throughout the sheet!
B3: Address: | C3: 2101 johnson
B4: Asking Price | C4: 1299000 | D4: Price Per Sq ft | E4: =C4/C5 -> 719.66759 | K4: Rent Growth Calculator
B5: SQ FT | C5: 1805 | D5: Price Per unit | E5: =C4/C7 -> 433000
B6: Year Built | C6: 1939 | D6: Gross Rent Multiplier: GRM | E6: =C4/(E19*12) -> 18.85888502
B7: Unit # | C7: 3 | D7: Stabilized GRM | E7: =C4/(F19*12) -> 13.56516291
K8: Years 1-3 10% increase
B9: Sale Price | C9: 1299000 | H9: Current Analysis | K9: Rent Growth Rate: | L9: 0.04
K10: Market Rent (Year 1): | L10: =F19 -> 7980
B11: Unit Breakdown | H11: Item | I11: $/Mo.
B12: Unit # | C12: #Beds | D12: #Baths | E12: Rent/Mo | F12: Market Rent | H12: Gross Rents | I12: =E19 -> 5740 | K12: End of Year: | L12: Market Rent
B13: 1: SFR | C13: 2 | D13: 1 | E13: 2750 | F13: 3200 | H13: Property Management | I13: =C$30*I12 -> 287 | K13: 1 | L13: =E19*1.1 -> 6314 | M13: 0.1
B14: 2: Studio A /1 bed | C14: 1 | D14: 1 | E14: 1600 | F14: 2390 | H14: Property Taxes: new | I14: =C$23/12 -> 1217.8125 | K14: 2 | L14: =L13*1.1 -> 6945.4 | M14: 0.1
B15: 3: Studio B /1 bed | C15: 1 | D15: 1 | E15: 1390 | F15: 2390 | H15: Insurance: current | I15: =C24 -> 113.6666667 | K15: 3 | L15: 7639.94 | M15: 0.1
H16: Owner-Paid Utilities | I16: =SUM(C$25:C$29) -> 255.16 | K16: 4 | L16: =L15*1.04 -> 7945.5376 | M16: 0.04
H17: Vacancy Reserve | I17: =C31*E19 -> 0 | K17: 5 | L17: 8263.359104 | M17: 0.04
H18: Maintenance Reserve | I18: =I$12*C32 -> 172.2 | K18: 6 | L18: 8593.893468 | M18: 0.04
B19: Totals | C19: =SUM(C13:C18) -> 4 | D19: 3 | E19: 5740 | F19: 7980 | H19: Total Operating Expenses | I19: =SUM(I13:I18) -> 2045.839167 | K19: 7 | L19: 8937.649207 | M19: 0.04
H20: Monthly NOI | I20: =I12-SUM(I13:I18) -> 3694.160833 | K20: 8 | L20: 9295.155175 | M20: 0.04
B21: Expenses | D21: Mortgage | H21: Annualized NOI | I21: =I20*12 -> 44329.93 | K21: 9 | L21: 9666.961382 | M21: 0.04
H22: Capitalization Rate | I22: =I21/C9 -> 0.03412619707 | K22: 10 | L22: 10053.63984 | M22: 0.04
B23: Property Tax/Yr: NEW | C23: =C9*0.01125 -> 14613.75 | D23: Downpayment (%) | E23: 0.35 | K23: 11 | L23: 10455.78543 | M23: 0.04
B24: Insurance/Mo: current | C24: =1364/12 -> 113.6666667 | D24: Interest Rate (%) | E24: 0.06 | H24: Stabilized pro forma analysis | K24: 12 | L24: 10874.01685 | M24: 0.04
B25: Gas & Electric/Mo | C25: 67.58 | D25: Loan Term (Years) | E25: 30 | K25: 13 | L25: 11308.97752 | M25: 0.04
B26: Water/Mo | C26: 67.58 | H26: Item | I26: $/Mo. | K26: 14 | L26: 11761.33662 | M26: 0.04
B27: Sewer/Mo | H27: Gross Rents | I27: =F19 -> 7980 | K27: 15 | L27: 12231.79009 | M27: 0.04
B28: Garbage/Mo | C28: 0 | H28: Property Management | I28: =C$30*I27 -> 399 | K28: 16 | L28: 12721.06169 | M28: 0.04
B29: Land Scaping | C29: 120 | H29: Property Taxes | I29: =C$23/12 -> 1217.8125 | K29: 17 | L29: 13229.90416 | M29: 0.04
B30: Management (%) | C30: 0.05 | H30: Insurance | I30: =C$24 -> 113.6666667 | K30: 18 | L30: 13759.10033 | M30: 0.04
B31: Vacancy (%) | C31: 0 | H31: Owner-Paid Utilities | I31: =SUM(C$25:C$29) -> 255.16 | K31: 19 | L31: 14309.46434 | M31: 0.04
B32: Maintenance (%) EST | C32: 0.03 | H32: Vacancy Reserve | I32: =C$31*I27 -> 0 | K32: 20 | L32: 14881.84291 | M32: 0.04
H33: Maintenance Reserve | I33: =C32*I27 -> 239.4
H34: Total Operating Expenses | I34: =SUM(I28:I33) -> 2225.039167
H35: Monthly NOI | I35: =I27-I34 -> 5754.960833
H36: Annualized NOI | I36: =I35*12 -> 69059.53
H37: Capitalization Rate | I37: =I36/C9 -> 0.05316361047

Sheet List Price
B2: Easy Enough: Just fill in all the blue cells while reviewing a property and the results will populate throughout the sheet!
B3: Address: | C3: 2101 johnson
B4: Asking Price | C4: 1299000 | D4: Price Per Sq ft | E4: =C4/C5 -> 719.66759 | AC4: Rent Growth Calculator
B5: SQ FT | C5: 1805 | D5: Price Per unit | E5: =C4/C7 -> 433000
B6: Year Built | C6: 1939 | D6: Gross Rent Multiplier: GRM | E6: =C4/(E19*12) -> 18.85888502
B7: Unit # | C7: 3 | D7: Stabilized GRM | E7: =C4/(F19*12) -> 13.56516291
B9: Sale Price | C9: 1299000 | H9: Current Pro Forma Analysis | N9: Refi Scenario | R9: 5 Year Debt Paydown Summary | V9: Does it qualify for a commercial loan? | AC9: Rent Growth Rate: | AD9: 0.035
V10: Debt Coverage Ratio Required: | X10: 1.25 | AC10: Market Rent (Year 1): | AD10: =F19 -> 7980
B11: Unit Breakdown | H11: Item | I11: $/Mo. | K11: Mortgage Calculator | N11: Mortgage Calculator | S11: Year | T11: Figure
B12: Unit # | C12: #Beds | D12: #Baths | E12: Rent/Mo | F12: Market Rent | H12: Gross Rents | I12: =E19 -> 5740 | K12: Sale Price | L12: =C9 -> 1299000 | N12: Sale Price | O12: =C9 -> 1299000 | R12: Total Debt Paydown | S12: 1 | T12: =($L$19*12)-T30 -> 10368.71689 | X12: Assumption | Y12: Pro Forma | Z12: Actual | AC12: End of Year: | AD12: Market Rent
B13: 1: SFR | C13: 2 | D13: 1 | E13: 2750 | F13: 3200 | H13: Property Management | I13: =C$30*I12 -> 287 | J13: =I13*12 -> 3444 | K13: Loan to Value Ratio | L13: =1-E$23 -> 0.65 | N13: Loan to Value Ratio | O13: =1-E23 -> 0.65 | R13: ROI on Paydown | S13: 1 | T13: =((T12)/$L$14) -> 0.0228059318 | V13: Gross Rents | Y13: =I12*12 -> 68880 | Z13: =I12*12 -> 68880 | AC13: 1 | AD13: =AD$10*((1+AD$9)^(AC13-1)) -> 7980
B14: 2: Studio/1 bed | C14: 1 | D14: 1 | E14: 1600 | F14: 2390 | H14: Property Taxes: new | I14: =C$23/12 -> 1217.8125 | K14: Down Payment | L14: =E23*C9 -> 454650 | N14: Down Payment | O14: =E23*C9 -> 454650 | R14: Total Debt Paydown | S14: 2 | T14: =($L$19*12)-T33 -> 11008.23666 | V14: Vacancy | X14: 0.03 | Y14: =Y13*X14 -> 2066.4 | Z14: =I17*12 -> 0 | AC14: 2 | AD14: 8259.3
B15: 3: Studio/1 bed | C15: 1 | D15: 1 | E15: 1390 | F15: 2390 | H15: Insurance: current | I15: =C24 -> 113.6666667 | K15: Closing Costs | L15: =E$26 -> 4546.5 | N15: Closing Costs | O15: =E26 -> 4546.5 | R15: ROI on Paydown | S15: 2 | T15: =((T14)/$L$14) -> 0.02421255177 | V15: Prop Mgmt | X15: 0.07 | Y15: =Y13*X15 -> 4821.6 | Z15: =12*I13 -> 3444 | AC15: 3 | AD15: 8548.3755
H16: Owner-Paid Utilities | I16: =SUM(C$25:C$29) -> 255.16 | K16: Principal | L16: =L12*L13 -> 844350 | N16: Principal | O16: =O12*O13 -> 844350 | R16: Total Debt Paydown | S16: 3 | T16: =($L$19*12)-T36 -> 11687.20061 | V16: Cash Reserves | X16: 0.03 | Y16: =X16*Y13 -> 2066.4 | Z16: =0.03*Z13 -> 2066.4 | AC16: 4 | AD16: 8847.568643
H17: Vacancy Reserve | I17: =C31*E19 -> 0 | K17: Interest Rate | L17: =E$24 -> 0.06 | N17: New Interest Rate | O17: 0.045 | R17: ROI on Paydown | S17: 3 | T17: =((T16)/$L$14) -> 0.02570592898 | V17: Taxes (actual) | Y17: =I14*12 -> 14613.75 | Z17: =I14*12 -> 14613.75 | AC17: 5 | AD17: 9157.233545
H18: Maintenance Reserve | I18: =I$12*C32 -> 172.2 | K18: Term (Years) | L18: =E$25 -> 30 | N18: Term (Years) | O18: 30 | R18: Total Debt Paydown | S18: 4 | T18: =($L$19*12)-T39 -> 12408.04157 | V18: Insurance (actual) | Y18: 1364 | Z18: 1364 | AC18: 6 | AD18: 9477.736719
B19: Totals | C19: =SUM(C13:C18) -> 4 | D19: 3 | E19: 5740 | F19: 7980 | H19: Total Operating Expenses | I19: =SUM(I13:I18) -> 2045.839167 | J19: =I19*12 -> 24550.07 | K19: Monthly Mortgage | L19: =-PMT(L17/12,L18*12, L16) -> 5062.304859 | N19: Monthly Mortgage | O19: =-PMT(O17/12,O18*12, O16) -> 4278.197414 | R19: ROI on Paydown | S19: 4 | T19: =((T18)/$L$14) -> 0.02729141443 | V19: Maintenance + Utilities | X19: 0.1 | Y19: =Y13*X19 -> 6888 | Z19: =(I16+I18)*12 -> 5128.32 | AC19: 7 | AD19: 9809.457504
E20: =E19*12 -> 68880 | H20: Monthly NOI | I20: =I12-SUM(I13:I18) -> 3694.160833 | K20: Monthly Net | L20: =I20-L19 -> -1368.144026 | N20: Monthly Net | O20: =I20-O19 -> -584.0365802 | R20: Total Debt Paydown | S20: 5 | T20: =($L$19*12)-T42 -> 13173.34243 | V20: Total Expenses | Y20: =SUM(Y14:Y18,Y19) -> 31820.15 | Z20: 26616.47 | AC20: 8 | AD20: 10152.78852
B21: Expenses | D21: Mortgage | H21: Annualized NOI | I21: =I20*12 -> 44329.93 | K21: Annualized Net | L21: =L20*12 -> -16417.72831 | N21: Annualized Net | O21: =O20*12 -> -7008.438962 | R21: ROI on Paydown | S21: 5 | T21: =((T20)/$L$14) -> 0.02897468916 | V21: NOI | Y21: =Y13-Y20 -> 37059.85 | Z21: 42263.53 | AC21: 9 | AD21: 10508.13611
H22: Capitalization Rate | I22: =I21/L12 -> 0.03412619707 | K22: Annualized ROI | L22: =L21/(L14+L15) -> -0.03575316517 | N22: Annualized ROI | O22: =O21/(O14+O15) -> -0.0152623963 | V22: Mortgage | Y22: =L19*12 -> 60747.65831 | Z22: =Y22 -> 60747.65831 | AC22: 10 | AD22: 10875.92088
B23: Property Tax/Yr: NEW | C23: =C9*0.01125 -> 14613.75 | D23: Downpayment (%) | E23: 0.35 | AC23: 11 | AD23: 11256.57811
B24: Insurance/Mo: current | C24: =1364/12 -> 113.6666667 | D24: Interest Rate (%) | E24: 0.06 | H24: Stabilized pro forma analysis | R24: Five Year Tax Deduction Summary | V24: Debt Coverage Ratio | Y24: =Y21/Y22 -> 0.6100621988 | Z24: 0.6957227846 | AC24: 12 | AD24: 11650.55834
B25: Gas & Electric/Mo | C25: 67.58 | D25: Loan Term (Years) | E25: 30 | R25: Improved Value: Assessed Value Ratio (%) | T25: 0.8 | V25: Net Profit | Y25: =Y21-Y22 -> -23687.80831 | Z25: -18484.12831 | AC25: 13 | AD25: 12058.32789
B26: Water/Mo | C26: 67.58 | D26: Closing Costs (1%) | E26: =L14*0.01 -> 4546.5 | H26: Item | I26: $/Mo. | K26: Mortgage Calculator | N26: Mortgage Calculator | R26: Marginal Tax Rate | T26: 0.51 | AC26: 14 | AD26: 12480.36936
B27: Sewer/Mo | H27: Gross Rents | I27: =F19 -> 7980 | K27: Sale Price | L27: =C9 -> 1299000 | N27: Sale Price | O27: =C9 -> 1299000 | V27: Average Annualized % Appreciation | AC27: 15 | AD27: 12917.18229
B28: Garbage/Mo | C28: 0 | D28: =C26*12 -> 810.96 | H28: Property Management | I28: =C$30*I27 -> 399 | K28: Loan to Value Ratio | L28: =1-E$23 -> 0.65 | N28: Loan to Value Ratio | O28: =1-E23 -> 0.65 | S28: Year | T28: Figure | V28: Assumed Rate: | W28: 0.05 | AC28: 16 | AD28: 13369.28367
B29: Land Scaping | C29: 120 | H29: Property Taxes | I29: =C$23/12 -> 1217.8125 | K29: Down Payment | L29: =E23*L27 -> 454650 | N29: Down Payment | O29: =E23*C9 -> 454650 | R29: Depreciation (Straight Line) | S29: 1 | T29: =(T25*$L$12)/27.5 -> 37789.09091 | AC29: 17 | AD29: 13837.2086
B30: Management (%) | C30: 0.05 | H30: Insurance | I30: =C$24 -> 113.6666667 | K30: Closing Costs | L30: =E$26 -> 4546.5 | N30: Closing Costs | O30: =E26 -> 4546.5 | R30: Total Interest Paid | S30: 1 | T30: =-CUMIPMT($L$17/12,$L$18*12,$L$16,(1+(12*(S30-1))),(12*S30),0) -> 50378.94142 | V30: End of Year: | W30: Est. Value | X30: Annual Gain | Y30: % Gain | AC30: 18 | AD30: 14321.5109
B31: Vacancy (%) | C31: 0 | H31: Owner-Paid Utilities | I31: =SUM(C$25:C$29) -> 255.16 | K31: Principal | L31: =L27*L28 -> 844350 | N31: Principal | O31: =O27*O28 -> 844350 | R31: Total Deductions | S31: 1 | T31: =SUM($T$29+$T30) -> 88168.03233 | V31: 1 | W31: =L12+(L12*$W$28) -> 1363950 | X31: =W31-L12 -> 64950 | Y31: =X31/$L$14 -> 0.1428571429 | AC31: 19 | AD31: 14822.76378
B32: Maintenance (%) EST | C32: 0.03 | H32: Vacancy Reserve | I32: =C$31*I27 -> 0 | K32: Interest Rate | L32: =E$24 -> 0.06 | N32: Interest Rate | O32: 0.045 | R32: Depreciation (Straight Line) | S32: 2 | T32: =(T25*$L$12)/27.5 -> 37789.09091 | V32: 2 | W32: =W31+(W31*$W$28) -> 1432147.5 | X32: =W32-W31 -> 68197.5 | Y32: 0.15 | AC32: 20 | AD32: 15341.56051
H33: Maintenance Reserve | I33: =C32*I27 -> 239.4 | K33: Term (Years) | L33: =E$25 -> 30 | N33: Term (Years) | O33: 30 | R33: Total Interest Paid | S33: 2 | T33: =-CUMIPMT($L$17/12,$L$18*12,$L$16,(1+(12*(S33-1))),(12*S33),0) -> 49739.42165 | V33: 3 | W33: 1503754.875 | X33: 71607.375 | Y33: 0.1575
H34: Total Operating Expenses | I34: =SUM(I28:I33) -> 2225.039167 | K34: Monthly Mortgage | L34: =-PMT(L32/12,L33*12, L31) -> 5062.304859 | N34: Monthly Mortgage | O34: =-PMT(O32/12,O33*12, O31) -> 4278.197414 | R34: Total Deductions | S34: 2 | T34: =SUM($T$29+$T33) -> 87528.51256 | V34: 4 | W34: 1578942.619 | X34: 75187.74375 | Y34: 0.165375
H35: Monthly NOI | I35: =I27-I34 -> 5754.960833 | K35: Monthly Net | L35: =I35-L34 -> 692.6559742 | N35: Monthly Net | O35: =I35-O34 -> 1476.76342 | R35: Depreciation (Straight Line) | S35: 3 | T35: =(T25*$L$12)/27.5 -> 37789.09091 | V35: 5 | W35: 1657889.75 | X35: 78947.13094 | Y35: 0.17364375
H36: Annualized NOI | I36: =I35*12 -> 69059.53 | K36: Annualized Net | L36: =L35*12 -> 8311.87169 | N36: Annualized Net | O36: =O35*12 -> 17721.16104 | R36: Total Interest Paid | S36: 3 | T36: =-CUMIPMT($L$17/12,$L$18*12,$L$16,(1+(12*(S36-1))),(12*S36),0) -> 49060.4577
H37: Capitalization Rate | I37: =I36/L27 -> 0.05316361047 | K37: Annualized ROI | L37: =L36/(L29+L30) -> 0.01810090384 | N37: Annualized ROI | O37: =O36/(O29+O30) -> 0.03859167271 | R37: Total Deductions | S37: 3 | T37: =SUM($T$29+$T36) -> 86849.54861 | V37: Total Return (% of initial investment)
R38: Depreciation (Straight Line) | S38: 4 | T38: =(T25*$L$12)/27.5 -> 37789.09091 | V38: Year | W38: 1 | X38: 2 | Y38: 3 | Z38: 4 | AA38: 5
R39: Total Interest Paid | S39: 4 | T39: =-CUMIPMT($L$17/12,$L$18*12,$L$16,(1+(12*(S39-1))),(12*S39),0) -> 48339.61674 | V39: Source of Gain
R40: Total Deductions | S40: 4 | T40: =SUM($T$29+$T39) -> 86128.70765 | V40: Cash flow | W40: =$L$37 -> 0.01810090384 | X40: 0.01810090384 | Y40: 0.01810090384 | Z40: 0.01810090384 | AA40: 0.01810090384
R41: Depreciation (Straight Line) | S41: 5 | T41: =(T25*$L$12)/27.5 -> 37789.09091 | V41: Debt Paydown | W41: =T13 -> 0.0228059318 | X41: =T15 -> 0.02421255177 | Y41: =T17 -> 0.02570592898 | Z41: =T19 -> 0.02729141443 | AA41: =T21 -> 0.02897468916
R42: Total Interest Paid | S42: 5 | T42: =-CUMIPMT($L$17/12,$L$18*12,$L$16,(1+(12*(S42-1))),(12*S42),0) -> 47574.31588 | V42: Tax Savings | W42: =(T31*T26)/L14 -> 0.09890178486 | X42: =(T34*T26)/L14 -> 0.09818440867 | Y42: =(T37*T26)/L14 -> 0.0974227863 | Z42: =(T40*T26)/L14 -> 0.09661418872 | AA42: =(T43*T26)/L14 -> 0.09575571861
R43: Total Deductions | S43: 5 | T43: =SUM($T$29+$T42) -> 85363.40679 | V43: Appreciation | W43: =Y31 -> 0.1428571429 | X43: =Y32 -> 0.15 | Y43: =Y33 -> 0.1575 | Z43: =Y34 -> 0.165375 | AA43: =Y35 -> 0.17364375
R44: Avg Yearly Tax Savings | T44: =(AVERAGE(T31,T34,T37,T40,T43))*T26 -> 44271.89721 | V44: Total ROI | W44: =SUM(W40:W43) -> 0.2826657634 | X44: 0.2904978643 | Y44: 0.2987296191 | Z44: 0.307381507 | AA44: 0.3164750616
R45: % Annual ROI on Tax Savings | T45: =T44/L14 -> 0.09737577743 | V45: Total $ Return | W45: =W44*$L$14 -> 128513.9893 | X45: 132074.854 | Y45: 135817.4213 | Z45: 139751.0022 | AA45: 143885.3868
